bitfinex-derivatives/quotes_BTCF0:USTF0_20241015
["timestamp","ask_amount","ask_price","bid_price","bid_amount"]
[1729006210914,0.075926,65870.0,65860.0,0.3608]
[1729006211118,0.075926,65870.0,65865.0,0.45]
[1729006211511,0.075926,65870.0,65860.0,0.3608]
[1729006211913,0.075926,65870.0,65860.0,0.436736]
[1729006212116,0.075909,65885.0,65879.0,0.075915]
[1729006212320,0.3608,65889.0,65880.0,0.525913]
[1729006212321,0.00398706,65884.0,65880.0,0.525913]
[1729006212617,0.3608,65893.0,65887.0,0.075905]
[1729006212825,0.075897,65895.0,65891.0,0.8108]
[1729006212826,0.00395642,65895.0,65891.0,0.8108]
[1729006213013,0.3608,65902.0,65891.0,0.8108]
[1729006213209,0.00391307,65900.0,65894.0,0.075897]
[1729006213413,0.00391307,65900.0,65891.0,0.8108]
[1729006213414,0.00391307,65900.0,65891.0,0.886701]
[1729006213612,0.45,65899.0,65891.0,0.3608]
[1729006213810,0.45,65899.0,65883.0,0.3608]
[1729006213811,0.07591,65884.0,65883.0,0.3608]
[1729006214021,0.3608,65889.0,65872.0,0.3608]
[1729006214217,0.075911,65884.0,65872.0,0.3608]
[1729006214415,0.001,65892.0,65883.0,0.7216]
[1729006214712,0.014,65897.0,65896.0,0.075896]
[1729006214915,0.00227641,65911.0,65903.0,0.075887]
[1729006215120,0.00227641,65911.0,65894.0,0.3608]
[1729006215121,0.00227641,65911.0,65906.0,0.3608]
[1729006215323,0.00227641,65911.0,65899.0,0.45]
[1729006215324,0.075886,65905.0,65898.0,0.075893]
[1729006215529,0.00227641,65911.0,65901.0,0.3608]
[1729006215530,0.075883,65908.0,65901.0,0.3608]
[1729006215823,0.075883,65908.0,65899.0,0.45]
[1729006215824,0.00390955,65908.0,65899.0,0.45]
[1729006216025,0.00227641,65911.0,65903.0,0.44]
[1729006216213,0.075881,65909.0,65903.0,0.454]
[1729006216414,0.075882,65908.0,65903.0,0.454]
[1729006216621,0.3608,65933.0,65906.0,0.3608]
[1729006216824,0.00227571,65925.0,65913.0,0.3608]
[1729006217014,0.3608,65920.0,65914.0,0.3608]
[1729006217218,0.436669,65920.0,65914.0,0.436675]
[1729006217422,0.436669,65920.0,65910.0,0.075879]
[1729006217423,0.436668,65920.0,65910.0,0.075879]
[1729006217628,0.3608,65920.0,65908.0,0.44]
[1729006217816,0.3608,65920.0,65906.0,0.436684]
[1729006218016,0.075881,65909.0,65906.0,0.3608]
[1729006218215,0.075882,65908.0,65906.0,0.3608]
[1729006218523,0.3608,65913.0,65906.0,0.3608]
[1729006218524,0.075883,65907.0,65906.0,0.3608]
[1729006218918,0.3608,65920.0,65906.0,0.3738]
[1729006219120,0.075872,65918.0,65912.0,0.075877]
[1729006219318,0.3608,65920.0,65914.0,0.075875]
[1729006219520,0.3608,65941.0,65924.0,0.075863]
[1729006219717,0.3608,65941.0,65924.0,0.8008]
[1729006219718,0.00398165,65940.0,65924.0,0.8008]
[1729006219917,0.00398165,65940.0,65933.0,0.3608]
[1729006220725,0.00398165,65940.0,65924.0,0.3608]
[1729006220930,0.44,65933.0,65924.0,0.3608]
[1729006221127,0.44,65933.0,65919.0,0.07814474]
[1729006221328,0.3608,65927.0,65917.0,0.36276]
[1729006221534,0.075849,65937.0,65914.0,0.014]
[1729006221535,0.3608,65919.0,65914.0,0.014]
[1729006221722,0.2827,65926.0,65914.0,0.014]
[1729006221925,0.075874,65915.0,65914.0,0.014]
[1729006222328,0.436674,65915.0,65914.0,0.014]
[1729006222726,0.07588,65910.0,65909.0,0.3608]
[1729006222921,0.45516,65914.0,65903.0,0.00227672]
[1729006223121,0.075883,65907.0,65903.0,0.00227672]
[1729006223630,0.075886,65905.0,65903.0,0.00227672]
[1729006223931,0.36475474,65915.0,65896.0,0.8108]
[1729006224120,0.44062874,65915.0,65914.0,0.014]
[1729006224526,0.89574874,65915.0,65914.0,0.014]
[1729006224925,0.89574874,65915.0,65903.0,0.013]
[1729006224926,0.001,65905.0,65903.0,0.013]
[1729006225128,0.075866,65922.0,65916.0,0.075872]
[1729006225338,0.07976454,65922.0,65916.0,0.075872]
[1729006225533,0.07976454,65922.0,65914.0,0.3608]
[1729006225534,0.00227617,65929.0,65921.0,0.3608]
[1729006225743,0.00227617,65929.0,65924.0,0.075863]
[1729006225945,0.00227617,65929.0,65925.0,0.075862]
[1729006226339,0.00227617,65929.0,65923.0,0.7216]
[1729006226537,0.031,65947.0,65937.0,0.075849]
[1729006226538,0.14978801,65946.0,65937.0,0.075849]
[1729006226941,0.14978801,65946.0,65937.0,0.074249]
[1729006227144,0.14978801,65946.0,65936.0,0.3608]
[1729006227145,0.075845,65941.0,65936.0,0.3608]
[1729006227336,0.075845,65940.0,65933.0,0.075852]
[1729006227534,0.44,65942.0,65930.0,0.3608]
[1729006227733,0.44,65931.0,65925.0,0.014]
[1729006227947,0.3608,65935.0,65927.0,0.07586]
[1729006228138,0.3608,65935.0,65923.0,0.36307551]
[1729006228139,0.0011,65938.0,65937.0,0.001]
[1729006228339,0.0011,65938.0,65937.0,0.00028601]
[1729006228649,0.076947,65938.0,65937.0,0.00028601]
[1729006229239,0.516947,65938.0,65937.0,0.00128601]
[1729006229539,0.516947,65938.0,65915.0,0.1456]
[1729006229540,0.075863,65924.0,65923.0,0.00227551]
[1729006229944,0.515863,65924.0,65923.0,0.00227551]
[1729006230242,1.25588,65924.0,65909.0,0.3608]
[1729006230436,0.075877,65913.0,65909.0,0.3608]
[1729006230637,0.075865,65923.0,65909.0,0.3608]
[1729006230837,0.075876,65913.0,65909.0,0.3608]
[1729006231248,0.07813823,65926.0,65923.0,0.001]
[1729006231249,0.00227623,65926.0,65923.0,0.001]
[1729006231434,0.3608,65939.0,65923.0,0.001]
[1729006231435,0.00390625,65935.0,65923.0,0.441]
[1729006231634,0.1466,65946.0,65934.0,0.3608]
[1729006231838,0.075839,65945.0,65940.0,0.075845]
[1729006232344,0.075845,65941.0,65936.0,0.075849]
[1729006232547,0.075843,65943.0,65935.0,0.075851]
[1729006232839,0.075843,65943.0,65931.0,0.44]
[1729006232840,0.1504961,65946.0,65934.0,0.3608]
[1729006233046,0.075843,65942.0,65937.0,0.075847]
[1729006233444,0.075843,65942.0,65940.0,0.014]
[1729006233741,0.075844,65941.0,65940.0,0.014]
[1729006234136,0.075851,65935.0,65934.0,0.3608]
[1729006234334,0.075851,65935.0,65923.0,1.514]
[1729006234335,0.876651,65935.0,65923.0,0.01604]
[1729006234547,0.075863,65924.0,65923.0,0.014]
[1729006234838,0.2811,65934.0,65923.0,0.014]
[1729006235036,0.3608,65935.0,65923.0,0.014]
[1729006235240,0.3608,65935.0,65921.0,0.80276]
[1729006235241,0.075852,65934.0,65930.0,0.075856]
[1729006235443,0.1466,65946.0,65933.0,0.44]
[1729006235645,0.075844,65942.0,65935.0,0.07585]
[1729006235843,0.075844,65942.0,65940.0,0.014]
[1729006236034,0.075843,65942.0,65940.0,0.028]
[1729006236443,0.15055502,65946.0,65940.0,0.014]
[1729006236638,0.075844,65941.0,65940.0,0.014]
[1729006237042,0.075848,65938.0,65932.0,0.436654]
[1729006237348,0.075851,65935.0,65932.0,0.3608]
[1729006237541,0.8008,65941.0,65932.0,0.3608]
[1729006237846,0.075853,65933.0,65932.0,0.3608]
[1729006239046,0.075834,65950.0,65932.0,0.3608]
[1729006239047,0.36307411,65975.0,65940.0,0.014]
[1729006239246,0.36307411,65975.0,65972.0,0.44]
[1729006239450,0.45472,65974.0,65965.0,0.44]
[1729006239750,0.07581,65971.0,65970.0,0.44]
[1729006240052,0.075811,65970.0,65965.0,0.44]
[1729006240244,0.36307411,65975.0,65965.0,0.44]
[1729006240439,0.36307411,65975.0,65974.0,0.44]
[1729006241447,0.36307411,65975.0,65968.0,0.44]
[1729006241649,0.075812,65969.0,65968.0,0.44]
[1729006242044,0.36307411,65975.0,65968.0,0.44]
[1729006242248,0.001,65970.0,65965.0,0.014]
[1729006242451,0.001,65970.0,65969.0,0.44]
[1729006242654,0.076811,65970.0,65969.0,0.44]
[1729006242853,0.075811,65970.0,65969.0,0.44]
[1729006243450,0.36307411,65975.0,65968.0,0.028]
[1729006243649,0.436612,65969.0,65968.0,0.014]
[1729006244046,0.075816,65965.0,65964.0,0.44]
[1729006244556,0.3608,65969.0,65964.0,0.44]
[1729006245054,0.001,65970.0,65969.0,0.075812]
[1729006245257,0.001,65970.0,65969.0,0.515812]
[1729006245555,0.00227411,65975.0,65974.0,0.075806]
[1729006245855,0.00227411,65975.0,65974.0,0.876606]
[1729006246154,0.3608,65999.0,65975.0,0.45472]
[1729006246358,0.3608,65999.0,65984.0,0.44]
[1729006246750,0.075786,65991.0,65990.0,0.44]
[1729006247061,0.36463967,65999.0,65985.0,0.44]
[1729006247254,0.075779,65998.0,65985.0,0.44]
[1729006247553,0.36463967,65999.0,65986.0,0.075792]
[1729006247758,0.36463967,65999.0,65990.0,0.44]
[1729006248263,0.36463967,65999.0,65985.0,0.075793]
[1729006248455,0.36463967,65999.0,65984.0,0.44]
[1729006248456,0.36563967,65999.0,65984.0,0.44]
[1729006248654,0.07579,65988.0,65984.0,0.014]
[1729006248958,0.36463967,65999.0,65985.0,0.515792]
[1729006249157,0.075785,65993.0,65990.0,0.002]
[1729006249557,0.36463967,65999.0,65985.0,0.456]
[1729006249763,0.075786,65992.0,65985.0,0.454]
[1729006249955,0.36563967,65999.0,65985.0,0.454]
[1729006250151,0.075779,65998.0,65985.0,0.515793]
[1729006250351,0.36463967,65999.0,65990.0,0.002]
[1729006250352,0.013,65993.0,65990.0,0.002]
[1729006250551,0.3608,66007.0,65990.0,0.002]
[1729006250552,0.3608,66007.0,65990.0,0.442]
[1729006250759,0.031,66008.0,66004.0,0.075771]
[1729006250955,0.031,66008.0,66007.0,0.3608]
[1729006251159,0.106767,66008.0,66000.0,0.3608]
[1729006251458,0.106767,66008.0,65993.0,0.3608]
[1729006251459,0.436574,66002.0,65993.0,0.3608]
[1729006251655,0.436574,66002.0,65993.0,0.8008]
[1729006251656,0.3608,66002.0,65993.0,0.8008]
[1729006251855,0.075772,66004.0,65993.0,0.8008]
[1729006252053,0.03486066,66008.0,66002.0,0.075774]
[1729006252254,0.03486066,66008.0,66007.0,0.436568]
[1729006252451,0.032,66008.0,66007.0,0.436568]
[1729006253061,0.031,66008.0,66007.0,0.436568]
[1729006253261,0.032,66008.0,66007.0,0.436568]
[1729006254759,0.032,66008.0,66007.0,0.450568]
[1729006254760,0.031,66008.0,66007.0,0.450568]
[1729006254961,0.031,66008.0,66007.0,0.464568]
[1729006255453,0.106767,66008.0,66007.0,0.464568]
[1729006255664,0.106767,66008.0,66007.0,0.028]
[1729006256056,0.106767,66008.0,66007.0,0.464568]
[1729006256460,0.106767,66008.0,66007.0,0.3888]
[1729006256659,0.106767,66008.0,66007.0,0.028]
[1729006257458,0.029,66008.0,66007.0,0.028]
[1729006257654,0.029,66008.0,66007.0,0.103768]
[1729006258260,0.029,66008.0,66007.0,0.41149728]
[1729006259059,0.43654,66032.0,66007.0,0.82272703]
[1729006259369,0.43654,66032.0,66012.0,0.44]
[1729006259370,0.075758,66017.0,66012.0,0.44]
[1729006259565,0.075753,66021.0,66019.0,0.515754]
[1729006259766,0.075753,66020.0,66019.0,0.44]
[1729006260065,0.00610306,66022.0,66019.0,0.44]
[1729006260264,0.075753,66020.0,66019.0,0.43995088]
[1729006260766,0.00610306,66022.0,66014.0,0.44]
[1729006260965,0.07576,66014.0,66013.0,0.3608]
[1729006261157,0.00610306,66022.0,66013.0,0.8008]
[1729006261475,0.00710306,66022.0,66021.0,0.44]
[1729006261771,0.08285406,66022.0,66021.0,0.44]
[1729006262065,0.00327257,66022.0,66021.0,0.44]
[1729006262267,0.1203,66026.0,66025.0,0.075747]
[1729006262676,0.031,66039.0,66038.0,0.075733]
[1729006262870,0.031,66039.0,66038.0,0.890813]
[1729006263465,0.3608,66060.0,66052.0,0.075716]
[1729006263466,0.075708,66059.0,66052.0,0.075716]
[1729006263668,0.3608,66060.0,66058.0,0.44]
[1729006263964,0.36470532,66060.0,66058.0,0.44]
[1729006264276,0.3608,66099.0,66059.0,0.81715552]
[1729006264462,0.3608,66087.0,66070.0,0.3608]
[1729006264668,0.075682,66083.0,66070.0,0.3608]
[1729006264869,0.339272,66091.0,66081.0,0.44]
[1729006265071,0.2636,66091.0,66090.0,0.44]
[1729006265573,0.2636,66091.0,66090.0,1.12168499]
[1729006265574,0.1263,66091.0,66090.0,1.12168499]
[1729006265766,0.1263,66091.0,66090.0,1.94]
[1729006266075,0.001,66091.0,66090.0,2.39392]
[1729006266267,0.001,66091.0,66090.0,1.954]
[1729006266573,0.001,66091.0,66090.0,0.454]
[1729006267662,0.00382285,66093.0,66090.0,0.454]
[1729006267975,0.00227054,66097.0,66090.0,0.468]
[1729006267976,0.076672,66091.0,66090.0,0.468]
[1729006268477,0.076672,66091.0,66090.0,0.454]
[1729006268676,0.00227054,66097.0,66090.0,0.454]
[1729006268677,0.00624334,66097.0,66090.0,0.454]
[1729006268876,0.075672,66091.0,66090.0,0.014]
[1729006269068,0.001,66091.0,66086.0,0.3608]
[1729006269269,0.001,66091.0,66085.0,0.3608]
[1729006269467,0.001,66091.0,66059.0,0.075708]
[1729006269468,0.3608,66086.0,66069.0,0.3608]
[1729006269772,0.075697,66069.0,66064.0,0.00196]
[1729006269969,0.075697,66069.0,66059.0,0.44]
[1729006270467,0.3608,66070.0,66059.0,0.44]
[1729006270668,0.075702,66065.0,66059.0,0.44]
[1729006271073,0.3608,66084.0,66079.0,0.075685]
[1729006271287,0.4861,66090.0,66083.0,0.515681]
[1729006271570,0.48994077,66090.0,66083.0,0.44]
[1729006271769,0.48994077,66090.0,66089.0,0.44]
[1729006271770,0.56561377,66090.0,66089.0,0.44]
[1729006272174,0.48994077,66090.0,66089.0,0.44]
[1729006272363,0.49894077,66090.0,66089.0,0.44]
[1729006272567,0.49894077,66090.0,66083.0,0.07668]
[1729006272568,0.95286077,66090.0,66083.0,0.001]
[1729006272778,0.95286077,66090.0,66073.0,0.44]
[1729006272779,0.07569,66076.0,66067.0,0.075699]
[1729006272967,0.07569,66076.0,66065.0,0.44226998]
[1729006272968,0.075691,66075.0,66065.0,0.44226998]
[1729006273168,0.3608,66084.0,66071.0,0.44]
[1729006273469,0.3608,66084.0,66067.0,0.3608]
[1729006273470,0.436481,66084.0,66077.0,0.44]
[1729006273669,0.3608,66084.0,66077.0,0.44]
[1729006274381,0.3608,66084.0,66079.0,0.075685]
[1729006274571,0.3608,66084.0,66083.0,0.515681]
[1729006274765,0.00382347,66087.0,66083.0,0.515681]
[1729006275065,0.3618,66090.0,66089.0,0.001]
[1729006275267,0.6111,66096.0,66089.0,0.001]
[1729006275268,0.127,66096.0,66095.0,0.07487511]
[1729006275471,0.3608,66114.0,66099.0,0.075663]
[1729006275472,0.07791732,66112.0,66099.0,0.075663]
[1729006275772,0.00226932,66112.0,66099.0,0.075663]
[1729006275970,0.00226932,66112.0,66111.0,0.075649]
[1729006276172,0.00226932,66112.0,66111.0,0.44]
[1729006276371,0.3608,66114.0,66111.0,0.44]
[1729006276682,0.00226892,66126.0,66111.0,0.44]
[1729006276871,0.00226892,66126.0,66123.0,0.44]
[1729006277071,0.00226892,66126.0,66107.0,0.3608]
[1729006277072,0.075634,66124.0,66118.0,0.44]
[1729006277376,0.3608,66122.0,66110.0,0.44]
[1729006277571,0.3608,66122.0,66109.0,0.00226915]
[1729006277773,0.07565,66110.0,66109.0,0.00226915]
[1729006277974,0.3608,66111.0,66099.0,0.3608]
[1729006278169,0.3608,66100.0,66093.0,0.8008]
[1729006278371,0.075665,66098.0,66093.0,0.8008]
[1729006278578,0.3608,66100.0,66085.0,0.00226947]
[1729006278579,0.075668,66094.0,66085.0,0.00226947]
[1729006278873,0.075678,66086.0,66085.0,0.00226947]
[1729006279082,0.075657,66105.0,66085.0,0.00226947]
[1729006279083,0.3608,66100.0,66090.0,0.075672]
[1729006279380,0.436462,66100.0,66093.0,0.44]
[1729006279675,0.436462,66100.0,66099.0,0.44]
[1729006279885,0.3608,66100.0,66099.0,0.44]
[1729006280373,0.1221,66110.0,66099.0,0.44]
[1729006280581,0.1221,66110.0,66109.0,0.44]
[1729006281171,0.3608,66120.0,66114.0,0.075645]
[1729006281370,0.3608,66120.0,66107.0,0.3608]
[1729006281371,0.4824,66129.0,66119.0,0.44]
[1729006281683,0.075631,66128.0,66125.0,0.44]
[1729006281871,0.3608,66129.0,66125.0,0.515633]
[1729006282068,0.00226855,66140.0,66127.0,0.3608]
[1729006282269,0.3608,66153.0,66139.0,0.3608]
[1729006282478,0.075597,66157.0,66152.0,0.44]
[1729006282777,0.3918,66160.0,66145.0,0.3608]
[1729006282778,0.39578065,66160.0,66145.0,0.3608]
[1729006282981,0.075607,66148.0,66145.0,0.3608]
[1729006283183,0.3608,66153.0,66145.0,0.3608]
[1729006283370,0.075601,66153.0,66152.0,0.3608]
[1729006283779,0.075609,66146.0,66145.0,0.3608]
[1729006284285,0.075609,66146.0,66145.0,0.81436]
[1729006284579,0.3980486,66160.0,66145.0,0.81436]
[1729006284580,0.0372486,66160.0,66145.0,0.81436]
[1729006284780,0.44,66159.0,66153.0,0.3608]
[1729006284975,0.0372486,66160.0,66153.0,0.3608]
[1729006285182,0.03326795,66160.0,66153.0,0.3608]
[1729006285481,0.075609,66147.0,66146.0,0.3608]
[1729006285682,0.075609,66147.0,66145.0,0.014]
[1729006285683,0.075609,66147.0,66145.0,0.3748]
[1729006286070,0.075609,66146.0,66145.0,0.014]
[1729006286277,0.075609,66146.0,66140.0,0.7216]
[1729006286472,0.44,66155.0,66140.0,0.7216]
[1729006286677,0.3608,66157.0,66140.0,0.7216]
[1729006286678,0.5156,66154.0,66153.0,0.014]
[1729006286983,0.075617,66139.0,66138.0,0.00226717]
[1729006287180,0.075611,66144.0,66138.0,0.00226717]
[1729006287375,0.3608,66149.0,66138.0,0.00226717]
[1729006287575,0.44,66147.0,66138.0,0.00226717]
[1729006287776,0.075611,66144.0,66138.0,0.00226717]
[1729006287979,0.075614,66142.0,66138.0,0.00226717]
[1729006288175,0.001,66146.0,66138.0,0.00226717]
[1729006288377,0.3608,66143.0,66138.0,0.00226717]
[1729006288582,0.075617,66139.0,66138.0,0.00226717]
[1729006288780,0.075617,66139.0,66133.0,0.3608]
[1729006289084,0.075617,66139.0,66138.0,0.011]
[1729006289385,0.005,66142.0,66124.0,0.3608]
[1729006289594,0.075617,66139.0,66128.0,0.44]
[1729006289775,0.075617,66139.0,66130.0,0.3608]
[1729006289981,0.3608,66143.0,66130.0,0.3608]
[1729006289982,0.3608,66143.0,66133.0,0.441]
[1729006290284,0.001,66144.0,66143.0,0.075612]
[1729006290694,0.001,66144.0,66141.0,0.44]
[1729006290879,0.001,66144.0,66138.0,0.3608]
[1729006290880,0.075613,66143.0,66138.0,0.3608]
[1729006291192,0.001,66144.0,66141.0,0.44]
[1729006291392,0.001,66144.0,66143.0,0.075612]
[1729006291685,0.3608,66153.0,66145.0,0.07561]
[1729006291885,0.001,66142.0,66141.0,0.075615]
[1729006292297,0.3608,66153.0,66141.0,0.529175]
[1729006292596,0.0038399,66154.0,66151.0,0.44]
[1729006292780,0.03326795,66160.0,66153.0,0.0756]
[1729006292983,0.03326795,66160.0,66158.0,0.44]
[1729006293586,0.03720199,66160.0,66158.0,0.44]
[1729006295090,0.03720199,66160.0,66159.0,0.075594]
[1729006295091,0.03326795,66160.0,66159.0,0.075594]
[1729006295391,0.3608,66207.0,66159.0,1.26643641]
[1729006295593,0.3608,66197.0,66190.0,0.44]
[1729006295794,0.3608,66197.0,66177.0,0.3608]
[1729006296094,0.3608,66190.0,66177.0,0.3608]
[1729006296294,0.03489825,66191.0,66183.0,0.44]
[1729006296504,0.075565,66185.0,66183.0,0.44]
[1729006296802,0.03489825,66191.0,66190.0,0.075559]
[1729006297001,0.471,66221.0,66210.0,0.075535]
[1729006297002,0.106524,66221.0,66210.0,0.075535]
[1729006297201,0.031,66221.0,66220.0,0.44]
[1729006297804,0.031,66221.0,66220.0,1.25384]
[1729006298106,0.031,66221.0,66214.0,0.3608]
[1729006298304,0.07553,66216.0,66214.0,0.3608]
[1729006298506,0.031,66221.0,66214.0,0.3608]
[1729006298695,0.031,66221.0,66215.0,0.44]
[1729006299202,0.032,66221.0,66220.0,0.007]
[1729006299805,0.031,66221.0,66220.0,0.89304]
[1729006300112,0.032,66221.0,66220.0,0.3608]
[1729006300603,0.032,66221.0,66220.0,0.81384]
[1729006301013,0.075508,66234.0,66221.0,0.075523]
[1729006301211,0.075508,66235.0,66224.0,0.075519]
[1729006301505,0.0755,66242.0,66225.0,0.44]
[1729006301701,0.075506,66236.0,66224.0,0.075519]
[1729006301896,0.075506,66236.0,66221.0,0.3608]
[1729006302102,0.44,66240.0,66221.0,0.3608]
[1729006302308,0.075507,66236.0,66225.0,0.075518]
[1729006302510,0.075509,66234.0,66227.0,0.3608]
[1729006302710,0.001,66235.0,66227.0,0.3608]
[1729006302711,0.07551,66233.0,66227.0,0.3608]
[1729006302900,0.441,66235.0,66227.0,0.3608]
[1729006303105,0.3608,66243.0,66221.0,0.3658]
[1729006303106,0.44,66230.0,66221.0,0.3658]
[1729006303307,0.075528,66217.0,66213.0,0.3608]
[1729006303508,0.3608,66224.0,66221.0,0.014]
[1729006303712,0.43632,66224.0,66221.0,0.014]
[1729006304025,0.3608,66224.0,66221.0,0.014]
[1729006304312,0.43632,66224.0,66221.0,0.014]
[1729006304512,0.075522,66222.0,66221.0,0.014]
[1729006304813,0.075522,66222.0,66221.0,0.02]
[1729006305204,0.1195,66223.0,66221.0,0.02]
[1729006305408,0.001,66230.0,66222.0,0.45304]
[1729006305612,0.3608,66245.0,66229.0,0.8008]
[1729006305910,0.3918,66252.0,66229.0,0.8008]
[1729006305911,0.3608,66251.0,66238.0,0.44]
[1729006306313,0.031,66252.0,66229.0,0.3608]
[1729006306314,0.075508,66234.0,66233.0,0.44]
[1729006306506,0.075511,66232.0,66229.0,0.3608]
[1729006306707,0.3618,66235.0,66227.0,0.014]
[1729006306911,0.075515,66228.0,66227.0,0.014]
[1729006307417,0.3618,66235.0,66221.0,0.37946307]
[1729006307418,0.075512,66231.0,66221.0,0.37946307]
[1729006307619,0.075522,66222.0,66221.0,0.3748]
[1729006307813,0.44,66226.0,66211.0,0.3608]
[1729006307814,0.075521,66223.0,66222.0,0.014]
[1729006308407,0.81839887,66223.0,66195.0,0.3608]
[1729006308708,0.3608,66209.0,66195.0,0.3608]
[1729006309014,0.3608,66196.0,66181.0,0.43863506]
[1729006309220,0.075565,66184.0,66181.0,0.36306706]
[1729006309426,0.8008,66196.0,66181.0,0.36306706]
[1729006309427,0.075567,66183.0,66181.0,0.36306706]
[1729006309612,0.00226703,66200.0,66195.0,0.014]
[1729006309916,0.00226703,66200.0,66199.0,0.436348]
[1729006310718,0.00226703,66200.0,66199.0,0.3608]
[1729006311016,0.01526703,66200.0,66199.0,0.3608]
[1729006311212,0.01526703,66200.0,66199.0,0.889508]
[1729006311414,0.031,66252.0,66209.0,0.075536]
[1729006311415,5.9e-07,66223.0,66209.0,0.075536]
[1729006311608,0.031,66252.0,66249.0,0.075491]
[1729006311609,0.16406482,66250.0,66249.0,0.075491]
[1729006311811,0.16406482,66250.0,66249.0,0.515491]
[1729006312218,0.1618,66250.0,66249.0,0.515491]
[1729006312515,0.031,66252.0,66251.0,0.075489]
[1729006312720,0.031,66252.0,66249.0,0.44]
[1729006312918,0.001,66250.0,66249.0,0.529491]
[1729006313222,0.001,66250.0,66249.0,0.454]
[1729006313417,0.001,66250.0,66249.0,0.529491]
[1729006313617,0.002,66250.0,66249.0,0.543491]
[1729006314416,0.032,66252.0,66251.0,0.089489]
[1729006315214,0.032,66252.0,66251.0,0.075489]
[1729006315215,0.031,66252.0,66251.0,0.075489]
[1729006315827,0.3608,66266.0,66263.0,0.44]
[1729006316026,0.075474,66265.0,66263.0,0.44]
[1729006316324,0.3608,66266.0,66263.0,0.44]
[1729006316918,0.436272,66266.0,66263.0,0.44]
[1729006317117,0.075473,66265.0,66263.0,0.454]
[1729006317324,0.3608,66266.0,66263.0,0.454]
[1729006317325,0.075474,66264.0,66263.0,0.454]
[1729006317526,0.075474,66264.0,66263.0,0.8148]
[1729006317823,0.13281997,66274.0,66263.0,0.8148]
[1729006317824,0.3608,66274.0,66263.0,0.8148]
[1729006318022,0.0046583,66279.0,66269.0,0.44]
[1729006318023,0.075465,66272.0,66269.0,0.44]
[1729006318321,0.03565735,66282.0,66271.0,0.8008]
[1729006318523,0.176854,66292.0,66281.0,0.44]
[1729006318716,0.44,66291.0,66278.0,0.3608]
[1729006318917,0.07545,66286.0,66278.0,0.3608]
[1729006319218,0.00226324,66294.0,66286.0,0.075448]
[1729006319517,0.00226324,66294.0,66284.0,0.3608]
[1729006319518,0.00226324,66294.0,66291.0,0.30795089]
[1729006319719,0.00226324,66294.0,66284.0,0.3608]
[1729006319917,0.075444,66291.0,66284.0,0.3608]
[1729006320325,0.00226324,66294.0,66284.0,0.3608]
[1729006320521,0.075448,66288.0,66286.0,0.001]
[1729006320820,0.3608,66291.0,66277.0,0.00226387]
[1729006321220,0.075456,66280.0,66278.0,0.014]
[1729006321622,0.075457,66279.0,66278.0,0.014]
[1729006321826,0.436257,66279.0,66255.0,0.07774803]
[1729006322018,0.436257,66279.0,66257.0,0.436282]
[1729006322019,0.075473,66266.0,66257.0,0.436282]
[1729006322214,0.3608,66270.0,66257.0,0.3608]
[1729006322419,0.07548,66259.0,66255.0,0.00226403]
[1729006322725,0.3608,66280.0,66278.0,0.014]
[1729006322927,0.3608,66289.0,66279.0,0.44]
[1729006323128,0.001,66291.0,66288.0,0.44]
[1729006323527,0.075448,66287.0,66282.0,0.44]
[1729006323734,0.3608,66286.0,66277.0,0.44]
[1729006323926,0.075455,66281.0,66277.0,0.44]
[1729006324117,0.3608,66286.0,66272.0,0.44]
[1729006324321,0.3608,66286.0,66270.0,0.3608]
[1729006324322,0.3608,66280.0,66266.0,0.44]
[1729006324533,0.075475,66263.0,66262.0,0.00459911]
[1729006324724,0.014,66266.0,66262.0,0.00459911]
[1729006324929,0.014,66266.0,66265.0,0.44]
[1729006325523,0.1227,66284.0,66265.0,0.8008]
[1729006325826,0.001,66280.0,66279.0,0.3748]
[1729006326022,0.001,66280.0,66279.0,0.450257]
[1729006326331,0.2555,66304.0,66293.0,0.075441]
[1729006326525,0.2555,66304.0,66293.0,0.8008]
[1729006326934,0.436232,66301.0,66293.0,0.876241]
[1729006327121,0.3608,66301.0,66293.0,0.876241]
[1729006327324,0.00226276,66308.0,66293.0,1.25332]
[1729006327624,0.00226276,66308.0,66294.0,0.44]
[1729006327831,0.3608,66304.0,66294.0,0.44]
[1729006328035,0.075437,66297.0,66293.0,0.3608]
[1729006328222,0.07544,66294.0,66293.0,0.3608]
[1729006328621,0.3608,66298.0,66282.0,0.44]
[1729006328827,0.075456,66281.0,66279.0,0.00226316]
[1729006329318,0.075456,66280.0,66279.0,0.00226316]
[1729006330129,0.001,66294.0,66279.0,0.01626316]
[1729006330323,0.001,66294.0,66291.0,0.44]
[1729006330638,0.076441,66294.0,66291.0,0.14]
[1729006331025,0.075441,66293.0,66291.0,0.14]
[1729006331222,0.3608,66302.0,66291.0,0.14]
[1729006331529,0.00465089,66306.0,66296.0,0.44]
[1729006331530,0.075428,66305.0,66296.0,0.44]
[1729006331834,0.075432,66301.0,66296.0,0.44]
[1729006332033,0.075435,66299.0,66296.0,0.44]
[1729006332233,0.43623,66304.0,66296.0,0.44]
[1729006332430,0.3608,66304.0,66302.0,0.44]